fUST/lending_fUST_20251004
["ID","MTS","AMOUNT","RATE_DAILY","PERIOD"]
[389153734,1759591904738,-500.0,0.00021643,2]
[389153735,1759591904748,-532.07,0.00021643,2]
[389153736,1759591904758,-870.38,0.00021643,2]
[389153737,1759591904768,-500.0,0.00021643,2]
[389153738,1759591904777,-3160.55,0.00021643,2]
[389153739,1759591904786,-1519.75,0.00021643,2]
[389153740,1759591904795,-1300.89,0.00021643,2]
[389153741,1759591904804,-2067.67,0.00021643,2]
[389153742,1759591904814,-580.84096995,0.00021643,2]
[389153743,1759591904823,-614.77,0.00021643,2]
[389153744,1759591904833,-857.26,0.00021643,2]
[389153745,1759591904843,-560.4,0.00021643,2]
[389153746,1759591904855,-731.76,0.00021643,2]
[389153747,1759591904864,-500.0,0.00021643,2]
[389153748,1759591904874,-1254.52,0.00021643,2]
[389153749,1759591904883,-500.0,0.00021643,2]
[389153750,1759591904893,-500.0,0.00021643,2]
[389153751,1759591904902,-1479.56,0.00021643,2]
[389153752,1759591904912,-3943.88,0.00021643,2]
[389153753,1759591904921,-500.0,0.00021643,2]
[389153754,1759591904932,-366.32519952,0.00021643,2]
[389153755,1759591904942,-1175.17,0.00021643,2]
[389153756,1759591904951,-1420.43,0.00021643,2]
[389153757,1759591904961,-500.0,0.00021643,2]
[389153758,1759591904971,-500.0,0.00021643,2]
[389153759,1759591904981,-3237.92,0.00021643,2]
[389153760,1759591904991,-1919.12,0.00021643,2]
[389153761,1759591905000,-968.29,0.00021643,2]
[389153762,1759591905011,-668.17,0.00021643,2]
[389153763,1759591905021,-4834.1,0.00021643,2]
[389153764,1759591905032,-863.7,0.00021643,2]
[389153765,1759591905041,-4308.41,0.00021643,2]
[389153766,1759591905052,-500.0,0.00021643,2]
[389153767,1759591905062,-1158.05,0.00021643,2]
[389153768,1759591905071,-500.0,0.00021643,2]
[389153769,1759591905080,-1128.4,0.00021643,2]
[389153770,1759591905090,-500.0,0.00021643,2]
[389153771,1759591905100,-1888.79,0.00021643,2]
[389153772,1759591905110,-500.0,0.00021643,2]
[389153773,1759591905120,-500.0,0.00021643,2]
[389153774,1759591905130,-3598.98,0.00021643,2]
[389153775,1759591905139,-500.0,0.00021643,2]
[389153776,1759591905148,-500.0,0.00021643,2]
[389153777,1759591905158,-3279.78,0.00021643,2]
[389153778,1759591905168,-2623.19,0.00021643,2]
[389153779,1759591905177,-500.0,0.00021643,2]
[389153780,1759591905189,-1046.7,0.00021643,2]
[389153781,1759591905199,-500.0,0.00021643,2]
[389153782,1759591905208,-500.0,0.00021643,2]
[389153783,1759591905218,-409.12002798,0.00021643,2]
[389153784,1759591905228,-500.0,0.00021643,2]
[389153785,1759591905237,-916.44,0.00021643,2]
[389153786,1759591905247,-649.69,0.00021643,2]
[389153787,1759591905257,-500.0,0.00021643,2]
[389153788,1759591905266,-716.0,0.00021643,2]
[389153789,1759591905276,-502.19,0.00021643,2]
[389153790,1759591905286,-692.99,0.00021643,2]
[389153791,1759591905295,-1677.96,0.00021643,2]
[389153792,1759591905305,-500.0,0.00021643,2]
[389153793,1759591905314,-725.08,0.00021643,2]
[389153794,1759591905323,-500.0,0.00021643,2]
[389153795,1759591905333,-543.32,0.00021643,2]
[389153796,1759591905343,-2622.01,0.00021643,2]
[389153797,1759591905352,-1956.57,0.00021643,2]
[389153798,1759591905362,-685.43,0.00021643,2]
[389153799,1759591905517,-4582.94,0.00021643,2]
[389153800,1759591905527,-1066.95,0.00021643,2]
[389153801,1759591905537,-620.36,0.00021643,2]
[389153802,1759591905547,-1558.65,0.00021643,2]
[389153803,1759591905556,-500.0,0.00021643,2]
[389153804,1759591905566,-500.0,0.00021643,2]
[389153805,1759591905576,-583.58,0.00021643,2]
[389153806,1759591905585,-850.74,0.00021643,2]
[389153807,1759591905595,-782.55,0.00021643,2]
[389153808,1759591905604,-500.0,0.00021643,2]
[389153809,1759591905614,-500.0,0.00021643,2]
[389153810,1759591905623,-1154.37,0.00021643,2]
[389153811,1759591905633,-837.9,0.00021643,2]
[389153812,1759591905643,-2615.62,0.00021643,2]
[389153813,1759591905652,-613.77,0.00021643,2]
[389153814,1759591905662,-695.31,0.00021643,2]
[389153815,1759591905671,-633.24,0.00021643,2]
[389153816,1759591905682,-3304.75,0.00021643,2]
[389153817,1759591905691,-1142.91,0.00021643,2]
[389153818,1759591905702,-551.71955659,0.00021643,2]
[389153819,1759591905711,-1593.05,0.00021643,2]
[389153820,1759591905720,-1681.94,0.00021643,2]
[389153821,1759591905730,-2044.74,0.00021643,2]
[389153822,1759591905739,-500.0,0.00021643,2]
[389153823,1759591905748,-343.75300189,0.00021643,2]
[389153824,1759591905758,-943.18,0.00021643,2]
[389153825,1759591905767,-1325.84,0.00021643,2]
[389153826,1759591905776,-500.0,0.00021643,2]
[389153827,1759591905787,-1462.47,0.00021643,2]
[389153828,1759591905796,-894.67,0.00021643,2]
[389153829,1759591905806,-1441.01,0.00021643,2]
[389153830,1759591905815,-948.86,0.00021643,2]
[389153831,1759591905826,-582.49,0.00021643,2]
[389153832,1759591905836,-1083.58,0.00021643,2]
[389153833,1759591905849,-2269.4,0.00021643,2]
[389153834,1759591905859,-859.66,0.00021643,2]
[389153835,1759591905868,-7279.62,0.00021643,2]
[389153836,1759591905877,-500.0,0.00021643,2]
[389153837,1759591905887,-885.0,0.00021643,2]
[389153838,1759591905897,-363.85018703,0.00021643,2]
[389153839,1759591905906,-500.0,0.00021643,2]
[389153840,1759591905916,-500.0,0.00021643,2]
[389153841,1759591905925,-2242.57,0.00021643,2]
[389153842,1759591905936,-521.71,0.00021643,2]
[389153843,1759591905945,-1253.86,0.00021643,2]
[389153844,1759591905954,-1820.23,0.00021643,2]
[389153845,1759591905963,-1593.62,0.00021643,2]
[389153846,1759591905974,-500.0,0.00021643,2]
[389153847,1759591905984,-500.0,0.00021643,2]
[389153848,1759591905994,-2434.85,0.00021643,2]
[389153849,1759591906005,-500.0,0.00021643,2]
[389153850,1759591906014,-500.0,0.00021643,2]
[389153851,1759591906024,-983.67,0.00021643,2]
[389153852,1759591906034,-1438.86,0.00021643,2]
[389153853,1759591906043,-3420.09,0.00021643,2]
[389153854,1759591906053,-1155.35,0.00021643,2]
[389153855,1759591906062,-500.0,0.00021643,2]
[389153856,1759591906071,-883.76,0.00021643,2]
[389153857,1759591906081,-500.0,0.00021643,2]
[389153858,1759591906091,-1284.14,0.00021643,2]
[389153859,1759591906100,-669.76,0.00021643,2]
[389153860,1759591906110,-5883.16,0.00021643,2]
[389153861,1759591906119,-5418.8,0.00021643,2]
[389153862,1759591906129,-460.9051973,0.00021643,2]
[389153863,1759591906139,-500.0,0.00021643,2]
[389153864,1759591906149,-1049.37,0.00021643,2]
[389153865,1759591906158,-659.62,0.00021643,2]
[389153866,1759591906167,-500.0,0.00021643,2]
[389153867,1759591906178,-599.3,0.00021643,2]
[389153868,1759591906189,-445.39405772,0.00021643,2]
[389153869,1759591906199,-6787.62,0.00021643,2]
[389153870,1759591906210,-1550.12,0.00021643,2]
[389153871,1759591906219,-645.14,0.00021643,2]
[389153872,1759591906229,-1658.15,0.00021643,2]
[389153873,1759591906239,-500.0,0.00021643,2]
[389153874,1759591906248,-686.1,0.00021643,2]
[389153875,1759591906258,-500.0,0.00021644,2]
[389153876,1759591906267,-151.0,0.00021644,2]
[389153877,1759591906276,-151.0,0.00021644,2]
[389153878,1759591906287,-500.0,0.00021644,2]
[389153879,1759591906297,-151.0,0.00021644,2]
[389153880,1759591906306,-500.0,0.00021644,2]
[389153881,1759591906316,-500.0,0.00021644,2]
[389153882,1759591906325,-151.0,0.00021644,2]
[389153883,1759591906334,-500.0,0.00021644,2]
[389153884,1759591906344,-151.0,0.00021644,2]
[389153885,1759591906353,-500.0,0.00021644,2]
[389153886,1759591906362,-500.0,0.00021644,2]
[389153887,1759591906372,-151.0,0.00021644,2]
[389153888,1759591906381,-500.0,0.00021644,2]
[389153889,1759591906391,-500.0,0.00021644,2]
[389153890,1759591906400,-500.0,0.00021644,2]
[389153891,1759591906409,-151.0,0.00021644,2]
[389153892,1759591906419,-151.0,0.00021644,2]
[389153893,1759591906431,-1443.0,0.00021644,2]
[389153894,1759591906442,-500.0,0.00021644,2]
[389153895,1759591906451,-500.0,0.00021644,2]
[389153896,1759591906466,-151.17647032,0.00021644,2]
[389153897,1759591906475,-500.0,0.00021644,2]
[389153898,1759591906484,-151.0,0.00021644,2]
[389153899,1759591906494,-232.14105881,0.00021644,2]
[389153900,1759591906503,-151.0,0.00021644,2]
[389153901,1759591906513,-500.0,0.00021644,2]
[389153902,1759591906522,-151.0,0.00021644,2]
[389153903,1759591906532,-500.0,0.00021644,2]
[389153904,1759591906542,-500.0,0.00021644,2]
[389153905,1759591906551,-500.0,0.00021644,2]
[389153906,1759591906561,-1500.0,0.0002165,2]
[389153907,1759591906570,-1500.0,0.0002165,2]
[389153908,1759591906579,-1500.0,0.0002165,2]
[389153909,1759591906589,-1500.0,0.0002165,2]
[389153910,1759591906597,-566.32025163,0.0002165,2]
[389153911,1759591906607,-1032.63641154,0.0002165,2]
[389153912,1759591906617,-2500.0,0.00021664,2]
[389153913,1759591906626,-179.9640072,0.00021674,2]
[389153914,1759591906635,-500.0,0.00021685,2]
[389153915,1759591906644,-476.0,0.00021729,2]
[389153916,1759591906654,-168.0,0.00021741,2]
[389153917,1759591906664,-1622.9911082,0.00021746,2]
[389153918,1759591906674,-906.9360339,0.00021747,2]
[389153919,1759591906686,-168.0,0.00021747,2]
[389153920,1759591906695,-500.0,0.00021751,2]
[389153921,1759591906705,-2351.0,0.00021772,2]
[389153922,1759591906714,-482.0,0.00021772,2]
[389153923,1759591906724,-180.0,0.00021772,2]
[389153924,1759591906734,-587.0,0.00021772,2]
[389153925,1759591906743,-587.0,0.00021772,2]
[389153926,1759591906753,-168.0,0.00021827,2]
[389153927,1759591906762,-500.0,0.00021849,2]
[389153928,1759591906771,-168.0,0.00021867,2]
[389153929,1759591906781,-460.0,0.00021892,2]
[389153930,1759591906790,-3000.0,0.000219,5]
[389153931,1759591906799,-168.0,0.00021906,2]
[389153932,1759591906809,-1000.0,0.00021912,2]
[389153933,1759591906819,-3000.0,0.00021912,2]
[389153934,1759591906828,-3000.0,0.00021912,2]
[389153935,1759591906839,-3000.0,0.00021912,2]
[389153936,1759591906853,-3000.0,0.00021912,2]
[389153937,1759591906863,-3000.0,0.00021912,2]
[389153938,1759591906873,-3000.0,0.00021912,2]
[389153939,1759591906883,-1884.6551854,0.00021912,2]
[389153940,1759591906892,-3000.0,0.00021912,2]
[389153941,1759591906901,-500.0,0.00021917,2]
[389153942,1759591906911,-1039.39,0.00021917,2]
[389153943,1759591906920,-507.83,0.00021917,2]
[389153944,1759591906930,-500.0,0.00021917,2]
[389153945,1759591906941,-1109.72,0.00021917,2]
[389153946,1759591906951,-658.4,0.00021917,2]
[389153947,1759591906960,-500.0,0.00021917,2]
[389153948,1759591906970,-500.0,0.00021917,2]
[389153949,1759591906980,-1722.53,0.00021917,2]
[389153950,1759591906990,-500.0,0.00021917,2]
[389153951,1759591906999,-500.0,0.00021917,2]
[389153952,1759591907008,-500.0,0.00021917,2]
[389153953,1759591907017,-500.0,0.00021917,2]
[389153954,1759591907026,-500.0,0.00021917,2]
[389153955,1759591907035,-561.02,0.00021917,2]
[389153956,1759591907046,-500.0,0.00021917,2]
[389153957,1759591907056,-500.0,0.00021917,2]
[389153958,1759591907066,-606.7,0.00021917,2]
[389153959,1759591907075,-576.96,0.00021917,2]
[389153960,1759591907086,-500.0,0.00021917,2]
[389153961,1759591907096,-815.78,0.00021917,2]
[389153962,1759591907106,-500.0,0.00021917,2]
[389153963,1759591907115,-500.0,0.00021917,2]
[389153964,1759591907125,-551.35,0.00021917,2]
[389153965,1759591907135,-503.54,0.00021917,2]
[389153966,1759591907145,-552.14,0.00021917,2]
[389153967,1759591907155,-500.0,0.00021917,2]
[389153968,1759591907165,-187.21648807,0.00021917,2]
[389153969,1759591907174,-500.0,0.00021917,2]
[389153970,1759591907186,-500.0,0.00021917,2]
[389153971,1759591907196,-500.0,0.00021917,2]
[389153972,1759591907212,-983.77,0.00021917,2]
[389153973,1759591907222,-717.9,0.00021917,2]
[389153974,1759591907232,-322.89293119,0.00021917,2]
[389153975,1759591907247,-535.53,0.00021917,2]
[389153976,1759591907255,-539.76,0.00021917,2]
[389153977,1759591907265,-1081.73,0.00021917,2]
[389153978,1759591907275,-785.95,0.00021917,2]
[389153979,1759591907285,-500.0,0.00021917,2]
[389153980,1759591907294,-996.16,0.00021917,2]
[389153981,1759591907304,-500.0,0.00021917,2]
[389153982,1759591907314,-1061.25,0.00021917,2]
[389153983,1759591907324,-500.0,0.00021917,2]
[389153984,1759591907333,-500.0,0.00021917,2]
[389153985,1759591907343,-1035.1,0.00021917,2]
[389153986,1759591907354,-571.62,0.00021917,2]
[389153987,1759591907364,-500.0,0.00021917,2]
[389153988,1759591907374,-940.09,0.00021917,2]
[389153989,1759591907383,-500.0,0.00021917,2]
[389153990,1759591907392,-500.0,0.00021917,2]
[389153991,1759591907402,-685.26,0.00021917,2]
[389153992,1759591907411,-1089.32,0.00021917,2]
[389153993,1759591907420,-521.57,0.00021917,2]
[389153994,1759591907430,-500.0,0.00021917,2]
[389153995,1759591907440,-500.0,0.00021917,2]
[389153996,1759591907450,-500.0,0.00021917,2]
[389153997,1759591907459,-500.0,0.00021917,2]
[389153998,1759591907469,-500.0,0.00021917,2]
[389153999,1759591907478,-500.0,0.00021917,2]
[389154000,1759591907487,-500.0,0.00021917,2]
[389154001,1759591907496,-500.0,0.00021917,2]
[389154002,1759591907505,-500.0,0.00021917,2]
[389154003,1759591907515,-500.0,0.00021917,2]
[389154004,1759591907525,-500.0,0.00021917,2]
[389154005,1759591907536,-500.0,0.00021917,2]
[389154006,1759591907546,-500.0,0.00021917,2]
[389154007,1759591907556,-500.0,0.00021917,2]
[389154008,1759591907565,-556.89,0.00021917,2]
[389154009,1759591907575,-500.0,0.00021917,2]
[389154010,1759591907585,-935.25,0.00021917,2]
[389154011,1759591907594,-638.24,0.00021917,2]
[389154012,1759591907604,-500.0,0.00021917,2]
[389154013,1759591907615,-3190.15,0.00021917,2]
[389154014,1759591907624,-500.0,0.00021917,2]
[389154015,1759591907633,-500.0,0.00021917,2]
[389154016,1759591907643,-500.0,0.00021917,2]
[389154017,1759591907657,-1767.35,0.00021917,2]
[389154018,1759591907666,-500.0,0.00021917,2]
[389154019,1759591907676,-500.0,0.00021917,2]
[389154020,1759591907687,-1021.71,0.00021917,2]
[389154021,1759591907696,-500.0,0.00021917,2]
[389154022,1759591907706,-722.22,0.00021917,2]
[389154023,1759591907716,-512.79,0.00021917,2]
[389154024,1759591907726,-500.0,0.00021917,2]
[389154025,1759591907735,-1130.19,0.00021917,2]
[389154026,1759591907745,-500.0,0.00021917,2]
[389154027,1759591907754,-594.94,0.00021917,2]
[389154028,1759591907765,-500.0,0.00021917,2]
[389154029,1759591907774,-1634.65,0.00021917,2]
[389154030,1759591907784,-755.21,0.00021917,2]
[389154031,1759591907794,-638.84,0.00021917,2]
[389154032,1759591907804,-1184.66,0.00021917,2]
[389154033,1759591907813,-1037.44,0.00021917,2]
[389154034,1759591907823,-500.0,0.00021917,2]
[389154035,1759591907831,-1102.84,0.00021917,2]
[389154036,1759591907841,-500.0,0.00021917,2]
[389154037,1759591907854,-500.0,0.00021917,2]
[389154038,1759591907863,-500.0,0.00021917,2]
[389154039,1759591907874,-500.0,0.00021917,2]
[389154040,1759591907884,-888.19,0.00021917,2]
[389154041,1759591907894,-500.0,0.00021917,2]
[389154042,1759591907904,-707.88,0.00021917,2]
[389154043,1759591907914,-500.0,0.00021917,2]
[389154044,1759591907923,-3472.11,0.00021917,2]
[389154045,1759591907934,-607.97,0.00021917,2]
[389154046,1759591907944,-500.0,0.00021917,2]
[389154047,1759591907953,-2253.27,0.00021917,2]
[389154048,1759591907963,-500.0,0.00021917,2]
[389154049,1759591907973,-500.0,0.00021917,2]
[389154050,1759591907982,-1207.5,0.00021917,2]
[389154051,1759591907992,-896.72,0.00021917,2]
[389154052,1759591908001,-183.99382041,0.00021917,2]
[389154053,1759591908010,-1747.71,0.00021917,2]
[389154054,1759591908019,-500.0,0.00021917,2]
[389154055,1759591908028,-595.63,0.00021917,2]
[389154056,1759591908037,-500.0,0.00021917,2]
[389154057,1759591908046,-500.0,0.00021917,2]
[389154058,1759591908056,-500.0,0.00021917,2]
[389154059,1759591908066,-500.0,0.00021917,2]
[389154060,1759591908075,-363.77,0.00021917,2]
[389154061,1759591908084,-500.0,0.00021917,2]
[389154062,1759591908094,-500.0,0.00021917,2]
[389154063,1759591908103,-500.0,0.00021917,2]
[389154064,1759591908256,-500.0,0.00021917,2]
[389154065,1759591908266,-500.0,0.00021917,2]
[389154066,1759591908276,-500.0,0.00021917,2]
[389154067,1759591908285,-500.0,0.00021917,2]
[389154068,1759591908295,-827.71,0.00021917,2]
[389154069,1759591908304,-504.25,0.00021917,2]
[389154070,1759591908315,-500.0,0.00021917,2]
[389154071,1759591908325,-890.07,0.00021917,2]
[389154072,1759591908335,-500.0,0.00021917,2]
[389154073,1759591908345,-914.63,0.00021917,2]
[389154074,1759591908354,-1015.82,0.00021917,2]
[389154075,1759591908364,-500.0,0.00021917,2]
[389154076,1759591908374,-592.3338692,0.00021917,2]
[389154077,1759591908384,-500.0,0.00021917,2]
[389154078,1759591908395,-532.07,0.00021917,2]
[389154079,1759591908405,-870.38,0.00021917,2]
[389154080,1759591908414,-500.0,0.00021917,2]
[389154081,1759591908425,-3160.55,0.00021917,2]
[389154082,1759591908436,-1519.75,0.00021917,2]
[389154083,1759591908446,-1300.89,0.00021917,2]
[389154084,1759591908456,-2067.67,0.00021917,2]
[389154085,1759591908465,-614.77,0.00021917,2]
[389154086,1759591908475,-857.26,0.00021917,2]
[389154087,1759591908485,-560.4,0.00021917,2]
[389154088,1759591908494,-500.0,0.00021917,2]
[389154089,1759591908504,-731.76,0.00021917,2]
[389154090,1759591908513,-1254.52,0.00021917,2]
[389154091,1759591908522,-500.0,0.00021917,2]
[389154092,1759591908532,-500.0,0.00021917,2]
[389154093,1759591908541,-1479.56,0.00021917,2]
[389154094,1759591908550,-3943.88,0.00021917,2]
[389154095,1759591908560,-600.0,0.00021917,2]
[389154096,1759591908570,-600.0,0.00021917,2]
[389154097,1759591908579,-313.2259023,0.00021917,2]
[389154098,1759591908590,-500.0,0.00021917,2]
[389154099,1759591908600,-1175.17,0.00021917,2]
[389154100,1759591908610,-1420.43,0.00021917,2]
[389154101,1759591908619,-500.0,0.00021917,2]
[389154102,1759591908629,-219.98575775,0.00021917,2]
[389154103,1759591908639,-3237.92,0.00021917,2]
[389154104,1759591908649,-1919.12,0.00021917,2]
[389154105,1759591908658,-968.29,0.00021917,2]
[389154106,1759591908669,-668.17,0.00021917,2]
[389154107,1759591908678,-4834.1,0.00021917,2]
[389154108,1759591908690,-863.7,0.00021917,2]
[389154109,1759591908700,-4308.41,0.00021917,2]
[389154110,1759591908710,-373.70332433,0.00021917,2]
[389154111,1759591908720,-1158.05,0.00021917,2]
[389154112,1759591908731,-500.0,0.00021917,2]
[389154113,1759591908740,-1128.4,0.00021917,2]
[389154114,1759591908750,-500.0,0.00021917,2]
[389154115,1759591908760,-1888.79,0.00021917,2]
[389154116,1759591908770,-500.0,0.00021917,2]
[389154117,1759591908779,-500.0,0.00021917,2]
[389154118,1759591908788,-3598.98,0.00021917,2]
[389154119,1759591908798,-500.0,0.00021917,2]
[389154120,1759591908808,-500.0,0.00021917,2]
[389154121,1759591908818,-3279.78,0.00021917,2]
[389154122,1759591908828,-2623.19,0.00021917,2]
[389154123,1759591908838,-500.0,0.00021917,2]
[389154124,1759591908851,-1046.7,0.00021917,2]
[389154125,1759591908862,-500.0,0.00021917,2]
[389154126,1759591908871,-500.0,0.00021917,2]
[389154127,1759591908881,-916.44,0.00021917,2]
[389154128,1759591908891,-649.69,0.00021917,2]
[389154129,1759591908902,-500.0,0.00021917,2]
[389154130,1759591908913,-716.0,0.00021917,2]
[389154131,1759591908924,-502.19,0.00021917,2]
[389154132,1759591908933,-692.99,0.00021917,2]
[389154133,1759591908943,-500.0,0.00021917,2]
[389154134,1759591908953,-1677.96,0.00021917,2]
[389154135,1759591908963,-725.08,0.00021917,2]
[389154136,1759591908973,-500.0,0.00021917,2]
[389154137,1759591908983,-543.32,0.00021917,2]
[389154138,1759591908993,-2622.01,0.00021917,2]
[389154139,1759591909003,-1956.57,0.00021917,2]
[389154140,1759591909013,-685.43,0.00021917,2]
[389154141,1759591909024,-4582.94,0.00021917,2]
[389154142,1759591909034,-1066.95,0.00021917,2]
[389154143,1759591909044,-620.36,0.00021917,2]
[389154144,1759591909055,-1558.65,0.00021917,2]
[389154145,1759591909064,-500.0,0.00021917,2]
[389154146,1759591909075,-583.58,0.00021917,2]
[389154147,1759591909085,-500.0,0.00021917,2]
[389154148,1759591909095,-850.74,0.00021917,2]
[389154149,1759591909104,-782.55,0.00021917,2]
[389154150,1759591909114,-500.0,0.00021917,2]
[389154151,1759591909123,-500.0,0.00021917,2]
[389154152,1759591909132,-837.9,0.00021917,2]
[389154153,1759591909143,-1154.37,0.00021917,2]
[389154154,1759591909152,-2615.62,0.00021917,2]
[389154155,1759591909162,-613.77,0.00021917,2]
[389154156,1759591909172,-695.31,0.00021917,2]
[389154157,1759591909181,-633.24,0.00021917,2]
[389154158,1759591909193,-3304.75,0.00021917,2]
[389154159,1759591909202,-1142.91,0.00021917,2]
[389154160,1759591909212,-1593.05,0.00021917,2]
[389154161,1759591909222,-1681.94,0.00021917,2]
[389154162,1759591909231,-2044.74,0.00021917,2]
[389154163,1759591909241,-500.0,0.00021917,2]
[389154164,1759591909251,-943.18,0.00021917,2]
[389154165,1759591909261,-1325.84,0.00021917,2]
[389154166,1759591909270,-1462.47,0.00021917,2]
[389154167,1759591909280,-894.67,0.00021917,2]
[389154168,1759591909289,-1441.01,0.00021917,2]
[389154169,1759591909300,-948.86,0.00021917,2]
[389154170,1759591909310,-582.49,0.00021917,2]
[389154171,1759591909320,-1083.58,0.00021917,2]
[389154172,1759591909329,-2269.4,0.00021917,2]
[389154173,1759591909339,-859.66,0.00021917,2]
[389154174,1759591909349,-7279.62,0.00021917,2]
[389154175,1759591909359,-500.0,0.00021917,2]
[389154176,1759591909369,-885.0,0.00021917,2]
[389154177,1759591909379,-500.0,0.00021917,2]
[389154178,1759591909389,-500.0,0.00021917,2]
[389154179,1759591909400,-2242.57,0.00021917,2]
[389154180,1759591909409,-521.71,0.00021917,2]
[389154181,1759591909419,-1253.86,0.00021917,2]
[389154182,1759591909429,-1820.23,0.00021917,2]
[389154183,1759591909440,-1593.62,0.00021917,2]
[389154184,1759591909450,-483.56805913,0.00021917,2]
[389154185,1759591909460,-500.0,0.00021917,2]
[389154186,1759591909482,-2434.85,0.00021917,2]
[389154187,1759591909499,-500.0,0.00021917,2]
[389154188,1759591909519,-500.0,0.00021917,2]
[389154189,1759591909538,-983.67,0.00021917,2]
[389154190,1759591909559,-1438.86,0.00021917,2]
[389154191,1759591909576,-3420.09,0.00021917,2]
[389154192,1759591909592,-1155.35,0.00021917,2]
[389154193,1759591909612,-500.0,0.00021917,2]
[389154194,1759591909629,-883.76,0.00021917,2]
[389154195,1759591909647,-500.0,0.00021917,2]
[389154196,1759591909667,-1284.14,0.00021917,2]
[389154197,1759591909688,-669.76,0.00021917,2]
[389154198,1759591909701,-5883.16,0.00021917,2]
[389154199,1759591909716,-5418.8,0.00021917,2]
[389154200,1759591909735,-500.0,0.00021917,2]
[389154201,1759591909750,-1049.37,0.00021917,2]
[389154202,1759591909765,-659.62,0.00021917,2]
[389154203,1759591909782,-607.48158416,0.00021917,2]
[389154204,1759591909796,-599.3,0.00021917,2]
[389154205,1759591909812,-6787.62,0.00021917,2]
[389154206,1759591909827,-1550.12,0.00021917,2]
[389154207,1759591909841,-645.14,0.00021917,2]
[389154208,1759591909861,-1658.15,0.00021917,2]
[389154209,1759591909876,-500.0,0.00021917,2]
[389154210,1759591909890,-151.0,0.00021918,2]
[389154211,1759591909905,-151.0,0.00021918,2]
[389154212,1759591909920,-151.0,0.00021918,2]
[389154213,1759591909935,-151.0,0.00021918,2]
[389154214,1759591909950,-164.336794,0.00021918,2]
[389154215,1759591909964,-151.0,0.00021918,2]
[389154216,1759591909979,-151.0,0.00021918,2]
[389154217,1759591909994,-151.0,0.00021918,2]
[389154218,1759591910008,-151.0,0.00021918,2]
[389154219,1759591910023,-151.0,0.00021918,2]
[389154220,1759591910037,-151.0,0.00021918,2]
[389154221,1759591910052,-151.0,0.00021918,2]
[389154222,1759591910067,-151.0,0.00021918,2]
[389154223,1759591910082,-151.0,0.00021918,2]
[389154224,1759591910095,-151.0,0.00021918,2]
[389154225,1759591910110,-151.0,0.00021918,2]
[389154226,1759591910124,-151.0,0.00021918,2]
[389154227,1759591910138,-151.0,0.00021918,2]
[389154228,1759591910152,-274.861425,0.00021918,2]
[389154229,1759591910165,-151.0,0.00021918,2]
[389154230,1759591910178,-151.0,0.00021918,2]
[389154231,1759591910191,-151.0,0.00021918,2]
[389154232,1759591910204,-151.0,0.00021918,2]
[389154233,1759591910216,-151.0,0.00021918,2]